bitfinex-derivatives/quotes_SOLF0:USTF0_20241120
["timestamp","ask_amount","ask_price","bid_price","bid_amount"]
[1732146494949,2.1136,236.37,236.27,10.30660756]
[1732146495743,2.1136,236.37,236.33,2.1138]
[1732146498351,2.1132,236.4,236.36,2.1135]
[1732146498551,2.5887,236.42,236.31,2.08]
[1732146498750,2.5887,236.42,236.35,6.59373665]
[1732146499351,2.5887,236.42,236.38,2.1133]
[1732146499352,4.7018,236.42,236.38,2.1133]
[1732146499658,0.27346,236.44,236.37,6.59373665]
[1732146500155,2.113,236.43,236.39,2.1132]
[1732146500657,2.1131,236.42,236.39,2.1132]
[1732146500851,6.59373665,236.43,236.38,2.1134]
[1732146501754,8.70693665,236.41,236.31,2.08]
[1732146502059,6.59373665,236.39,236.33,2.1138]
[1732146502760,6.59373665,236.39,236.31,2.08]
[1732146503056,2.08,236.42,236.31,2.08]
[1732146503057,2.1136,236.36,236.31,2.08]
[1732146503863,6.59373665,236.37,236.3,6.59373665]
[1732146504066,2.1138,236.34,236.28,6.59373665]
[1732146504362,6.59373665,236.35,236.28,6.59373665]
[1732146504660,2.1138,236.34,236.3,2.1141]
[1732146507567,2.08,236.37,236.3,6.59373665]
[1732146507762,2.08,236.37,236.34,2.1137]
[1732146507967,8.70713665,236.38,236.34,2.1137]
[1732146508468,6.59373665,236.38,236.34,2.1137]
[1732146508766,3.2802,236.41,236.32,6.59373665]
[1732146509065,6.59373665,236.39,236.32,6.59373665]
[1732146509261,6.59373665,236.37,236.3,6.59373665]
[1732146509463,6.59373665,236.37,236.28,6.59373665]
[1732146510265,6.59373665,236.35,236.28,6.59373665]
[1732146511068,2.1138,236.34,236.3,2.1141]
[1732146511273,6.59373665,236.33,236.26,6.59373665]
[1732146512067,2.114,236.32,236.28,2.1142]
[1732146512373,6.59373665,236.33,236.26,6.59373665]
[1732146513169,8.70763665,236.33,236.28,2.1142]
[1732146514272,2.1139,236.33,236.29,2.1142]
[1732146515469,8.70763665,236.33,236.29,2.1142]
[1732146516072,8.70763665,236.33,236.3,2.1141]
[1732146516073,6.59373665,236.33,236.3,2.1141]
[1732146516272,2.1138,236.34,236.3,2.1141]
[1732146516482,1.2002,236.41,236.32,6.59373665]
[1732146516777,2.1136,236.37,236.33,2.1138]
[1732146517670,2.1136,236.37,236.31,6.59373665]
[1732146517874,6.59373665,236.38,236.31,6.59373665]
[1732146518074,2.1137,236.35,236.24,2.08]
[1732146518376,2.1137,236.35,236.31,2.1139]
[1732146518570,8.70753665,236.34,236.27,6.59373665]
[1732146518777,6.59373665,236.34,236.29,2.1142]
[1732146518980,6.59373665,236.34,236.27,6.59373665]
[1732146519175,2.1139,236.33,236.27,6.59373665]
[1732146519375,2.1139,236.33,236.29,2.1141]
[1732146519576,6.59373665,236.34,236.27,6.59373665]
[1732146519577,2.1138,236.34,236.27,6.59373665]
[1732146519774,2.1138,236.34,236.29,6.59373665]
[1732146519982,2.1138,236.34,236.3,2.1141]
[1732146521478,6.59373665,236.36,236.3,2.1141]
[1732146521673,2.1138,236.33,236.3,2.1141]
[1732146523980,8.70753665,236.34,236.3,2.1141]
[1732146526377,2.1138,236.34,236.3,2.1141]
[1732146527383,2.08,236.36,236.32,2.1139]
[1732146527582,2.08,236.36,236.31,6.59373665]
[1732146527884,6.59373665,236.38,236.31,6.59373665]
[1732146528478,2.1136,236.36,236.33,2.1138]
[1732146529088,2.1139,236.33,236.3,2.1141]
[1732146531792,2.1138,236.34,236.3,2.1141]
[1732146533089,2.1138,236.34,236.31,2.114]
[1732146533391,6.59373665,236.39,236.3,6.59373665]
[1732146533592,6.59373665,236.37,236.3,6.59373665]
[1732146533787,2.1137,236.35,236.31,2.114]
[1732146533989,6.59373665,236.37,236.31,2.114]
[1732146534186,2.08,236.4,236.3,6.59373665]
[1732146534388,6.59373665,236.39,236.33,2.1138]
[1732146534892,2.1136,236.36,236.33,2.1138]
[1732146535288,2.1136,236.36,236.3,6.59373665]
[1732146535289,6.59373665,236.37,236.32,2.1139]
[1732146535790,6.59373665,236.37,236.31,2.1139]
[1732146536190,2.1137,236.35,236.31,2.1139]
[1732146536387,6.59373665,236.37,236.31,2.1139]
[1732146536591,6.59373665,236.35,236.31,2.1139]
[1732146536791,2.1138,236.34,236.31,2.1139]
[1732146537790,8.70743665,236.35,236.3,2.1141]
[1732146537998,6.59373665,236.35,236.28,6.59373665]
[1732146539297,6.59373665,236.35,236.31,2.1139]
[1732146539298,2.1138,236.34,236.31,2.1139]
[1732146543291,6.59373665,236.35,236.3,2.1141]
[1732146543496,6.59373665,236.31,236.21,2.08]
[1732146543700,6.59373665,236.29,236.21,8.67373665]
[1732146543900,8.70793665,236.29,236.26,2.1145]
[1732146544896,8.70793665,236.29,236.25,2.1145]
[1732146546101,2.1142,236.29,236.25,2.1145]
[1732146547505,2.1143,236.28,236.23,2.1147]
[1732146547706,6.59373665,236.29,236.21,6.59373665]
[1732146547911,6.59373665,236.27,236.19,8.75373665]
[1732146548198,6.59373665,236.25,236.17,6.59373665]
[1732146548399,6.59373665,236.23,236.15,6.59373665]
[1732146549302,2.1148,236.22,236.18,2.1152]
[1732146550106,8.70843665,236.24,236.19,2.1151]
[1732146550308,6.59373665,236.24,236.19,2.1151]
[1732146551300,2.1148,236.22,236.18,2.1152]
[1732146551705,6.59373665,236.24,236.17,6.59373665]
[1732146553003,6.59373665,236.24,236.14,2.16]
[1732146553004,6.59373665,236.2,236.11,2.16]
[1732146553200,6.59373665,236.2,236.13,6.59373665]
[1732146553606,6.59373665,236.2,236.11,6.59373665]
[1732146553903,14.85,236.25,236.11,6.59373665]
[1732146553904,6.59373665,236.18,236.11,6.59373665]
[1732146554105,2.16,236.19,236.08,6.59373665]
[1732146554306,8.75373665,236.19,236.1,6.59373665]
[1732146554498,2.16,236.19,236.14,6.59373665]
[1732146554699,8.75373665,236.23,236.17,2.1152]
[1732146554901,6.59373665,236.21,236.14,6.59373665]
[1732146555103,6.59373665,236.21,236.12,2.16]
[1732146555300,6.59373665,236.21,236.12,8.75373665]
[1732146555505,2.115,236.2,236.15,2.1154]
[1732146556005,2.16,236.25,236.13,2.1155]
[1732146556006,2.1152,236.18,236.13,2.1155]
[1732146556309,6.59373665,236.19,236.13,2.1155]
[1732146556511,6.59373665,236.17,236.1,6.59373665]
[1732146557205,2.16,236.19,236.0,1.2503]
[1732146557206,6.59373665,236.12,236.06,6.59373665]
[1732146557704,6.59373665,236.12,236.04,8.75373665]
[1732146558004,6.59373665,236.12,236.04,2.16]
[1732146558200,6.59373665,236.07,235.94,1.2906]
[1732146558403,6.59373665,236.05,235.98,6.59373665]
[1732146559204,8.71013665,236.05,235.99,2.1168]
[1732146559709,8.71013665,236.05,235.98,6.59373665]
[1732146559905,8.71013665,236.05,236.0,2.1168]
[1732146560411,2.1165,236.03,235.97,2.117]
[1732146560711,2.1165,236.03,235.96,6.59373665]
[1732146560907,8.71043665,236.01,235.92,2.16]
[1732146561105,8.71043665,236.01,235.93,6.59373665]
[1732146561305,8.71043665,236.01,235.96,2.1171]
[1732146561803,2.117,235.98,235.91,6.59373665]
[1732146562002,6.59373665,235.99,235.93,2.1174]
[1732146562208,2.117,235.98,235.91,6.59373665]
[1732146563311,2.117,235.98,235.92,2.1175]
[1732146563508,1.2389,236.04,235.97,6.59373665]
[1732146563717,7.83263665,236.04,235.97,6.59373665]
[1732146563915,7.83263665,236.04,235.97,8.71073665]
[1732146564307,9.94903665,236.04,235.97,6.59373665]
[1732146564507,1.2663,236.06,235.99,6.59373665]
[1732146565015,3.3826,236.06,235.99,8.71053665]
[1732146565213,6.59373665,236.05,235.99,2.1168]
[1732146565412,6.59373665,236.01,235.95,8.75373665]
[1732146566409,6.59373665,236.01,235.96,2.1172]
[1732146567111,1.2663,236.06,236.01,2.1167]
[1732146567614,7.86003665,236.06,236.01,2.1167]
[1732146569118,6.59373665,236.04,235.97,2.117]
[1732146569412,6.59373665,236.04,235.96,6.59373665]
[1732146570317,2.1165,236.03,235.98,2.1169]
[1732146571413,7.86003665,236.06,236.01,2.1167]
[1732146571819,9.97633665,236.06,236.01,2.1167]
[1732146572120,7.86003665,236.06,236.02,2.1166]
[1732146572718,6.59373665,236.06,236.0,6.59373665]
[1732146572915,8.75373665,236.12,236.04,6.59373665]
[1732146573115,8.75373665,236.12,236.06,6.59373665]
[1732146573313,8.75373665,236.12,236.09,2.116]
[1732146574023,8.75373665,236.12,236.08,2.1161]
[1732146574617,2.16,236.12,236.08,2.1161]
[1732146575020,2.16,236.12,236.02,12.48897066]
[1732146575021,12.48897066,236.12,236.02,2.16]
[1732146575223,10.32897066,236.09,235.98,2.14]
[1732146575517,10.32897066,236.09,235.96,11.57917066]
[1732146576121,10.32897066,236.06,235.95,2.14]
[1732146576316,12.46897066,236.06,235.95,2.14]
[1732146576714,2.1165,236.03,235.95,2.14]
[1732146577122,12.46897066,236.06,235.95,2.14]
[1732146577516,2.1168,236.0,235.95,2.1172]
[1732146577716,2.1168,236.0,235.9,1.2068]
[1732146578019,2.1168,236.0,235.96,2.1171]
[1732146579014,2.1168,236.0,235.89,2.14]
[1732146579214,10.32897066,235.99,235.89,2.14]
[1732146579420,2.117,235.98,235.89,2.14]
[1732146579923,2.117,235.98,235.87,2.14]
[1732146580318,2.117,235.98,235.94,2.1173]
[1732146580724,2.117,235.98,235.87,2.14]
[1732146580925,2.117,235.98,235.94,2.1173]
[1732146582018,10.32897066,235.99,235.94,2.1173]
[1732146582219,10.32897066,235.99,235.96,2.1171]
[1732146585428,2.1167,236.01,235.97,2.117]
[1732146586124,11.56337066,236.02,235.87,10.32897066]
[1732146586329,10.32897066,236.02,235.88,2.14]
[1732146588425,10.32897066,236.02,235.98,2.1169]
[1732146588629,12.44557066,236.02,235.98,2.1169]
[1732146588823,10.32897066,236.02,235.88,2.14]
[1732146589029,2.1167,236.01,235.88,2.14]
[1732146589426,2.1167,236.01,235.96,2.1171]
[1732146590522,10.32897066,235.99,235.96,2.1171]
[1732146591425,10.32897066,235.99,235.88,2.14]
[1732146591629,10.32897066,235.99,235.95,2.1172]
[1732146592525,10.32897066,235.99,235.88,2.14]
[1732146592731,2.117,235.98,235.92,2.1174]
[1732146594837,6.61931269,235.95,235.92,2.1174]
[1732146598142,6.61931269,235.95,235.91,2.1176]
[1732146598643,6.61931269,235.97,235.9,6.61931269]
[1732146598842,6.61931269,235.99,235.92,6.61931269]
[1732146600742,8.73621269,235.99,235.94,2.1173]
[1732146601147,6.61931269,235.97,235.9,6.61931269]
[1732146602249,2.1172,235.96,235.92,2.1175]
[1732146602645,6.61931269,235.99,235.9,6.61931269]
[1732146603144,2.117,235.98,235.9,6.61931269]
[1732146603349,6.61931269,235.99,235.9,6.61931269]
[1732146603846,2.117,235.98,235.9,6.61931269]
[1732146604252,2.117,235.98,235.92,6.61931269]
[1732146605448,2.117,235.98,235.94,2.1173]
[1732146605648,2.1174,235.94,235.88,2.14]
[1732146605945,6.61931269,235.93,235.9,2.1176]
[1732146606151,6.61931269,235.93,235.86,6.61931269]
[1732146606449,2.1175,235.92,235.88,2.1178]
[1732146607446,6.61931269,235.91,235.88,2.1179]
[1732146607654,6.61931269,235.91,235.85,2.1]
[1732146607948,6.61931269,235.89,235.85,2.1]
[1732146608644,6.61931269,235.89,235.85,4.2181]
[1732146609041,2.1178,235.9,235.83,6.61931269]
[1732146609848,6.61931269,235.91,235.85,6.61931269]
[1732146610149,6.61931269,235.93,235.85,6.61931269]
[1732146610952,6.61931269,235.93,235.88,2.1178]
[1732146611247,6.61931269,235.93,235.87,6.61931269]
[1732146611551,6.61931269,235.95,235.89,6.61931269]
[1732146612452,1.2454,236.03,235.93,6.61931269]
[1732146612747,6.61931269,236.02,235.95,6.61931269]
[1732146613052,6.61931269,236.02,235.93,8.71931269]
[1732146613053,2.1169,236.0,235.93,8.71931269]
[1732146614650,6.61931269,236.02,235.94,2.1173]
[1732146614848,6.61931269,236.0,235.93,8.71931269]
[1732146615253,8.73621269,236.0,235.94,2.1173]
[1732146616146,6.61931269,236.0,235.94,2.1173]
[1732146616350,2.1169,235.99,235.94,2.1173]
[1732146616652,6.61931269,236.02,235.95,8.73651269]
[1732146616852,2.1168,236.0,235.95,8.73651269]
[1732146617257,2.1168,236.0,235.95,2.1172]
[1732146617450,6.61931269,235.98,235.93,2.1]
[1732146617653,6.61931269,235.94,235.89,2.1]
[1732146618252,2.1174,235.93,235.89,2.1]
[1732146618655,6.61931269,235.92,235.89,2.1]
[1732146619154,6.61931269,235.92,235.88,2.1178]
[1732146619352,6.61931269,235.92,235.86,2.1]
[1732146619859,6.61931269,235.92,235.89,2.1178]
[1732146620253,8.73681269,235.92,235.86,2.1]
[1732146620450,8.73681269,235.92,235.86,8.71931269]
[1732146620658,2.1175,235.92,235.86,2.1]
[1732146621359,2.1175,235.92,235.88,2.1179]
[1732146622751,2.1175,235.92,235.86,2.1]
[1732146622752,23.0352177,235.96,235.79,11.5978177]
[1732146622960,10.3452177,235.9,235.8,2.1]
[1732146623153,10.3452177,235.9,235.76,40.8052177]
[1732146623357,2.1181,235.86,235.77,2.1]
[1732146623961,2.1181,235.86,235.81,2.1184]
[1732146624361,2.118,235.87,235.81,2.1184]
[1732146625362,2.118,235.87,235.78,2.1]
[1732146625363,2.1183,235.84,235.79,2.1187]
[1732146625559,10.3452177,235.87,235.75,2.1]
[1732146625560,2.5232,235.86,235.75,2.1]
[1732146625958,2.5232,235.86,235.77,2.1188]
[1732146626266,10.3452177,235.84,235.75,2.1]
[1732146627359,2.1185,235.81,235.75,2.1]
[1732146627561,2.1185,235.81,235.73,2.1]
[1732146627761,2.1185,235.81,235.72,2.1]
[1732146628059,2.1184,235.82,235.76,2.1189]
[1732146628561,2.1185,235.81,235.76,2.1189]
[1732146628959,10.3452177,235.84,235.76,2.1189]
[1732146629459,2.1185,235.82,235.76,2.1189]
[1732146630264,2.1186,235.81,235.75,2.119]
[1732146630558,10.3452177,235.83,235.75,2.119]
[1732146630964,12.4452177,235.83,235.71,2.1]
[1732146631166,2.1186,235.8,235.74,2.1191]
[1732146631866,12.4638177,235.8,235.74,2.1191]
[1732146632265,12.4638177,235.8,235.7,2.1195]
[1732146632266,2.1189,235.77,235.7,2.1195]
[1732146632462,2.1189,235.77,235.68,2.1]
[1732146632869,2.1189,235.77,235.71,2.1194]
[1732146633164,10.3452177,235.8,235.71,2.1194]
[1732146633360,10.3452177,235.8,235.68,2.1]
[1732146633757,10.3452177,235.8,235.69,2.1]
[1732146634063,2.1188,235.78,235.72,2.1193]
[1732146634258,2.1188,235.78,235.69,2.1]
[1732146634465,10.3452177,235.8,235.69,2.1]
[1732146634666,10.3452177,235.8,235.73,2.1192]
[1732146635459,2.1188,235.78,235.74,2.1191]
[1732146637858,10.3452177,235.8,235.69,2.1]
[1732146638463,10.3452177,235.77,235.69,2.1]
[1732146638973,10.3452177,235.77,235.66,2.1]
[1732146639465,2.1192,235.73,235.69,2.1195]
[1732146639666,12.9103177,235.77,235.69,2.1195]
[1732146640066,10.3452177,235.74,235.56,2.15070201]
[1732146640263,2.1,235.73,235.6,2.1]
[1732146640467,2.1,235.73,235.6,4.25573619]
[1732146641372,2.1194,235.71,235.66,2.1198]
[1732146642769,6.63367515,235.7,235.67,2.1198]
[1732146644367,1.2275,235.76,235.71,2.1194]
[1732146644368,6.63367515,235.75,235.71,2.1194]
[1732146644573,8.73367515,235.75,235.71,2.1194]
[1732146645072,2.1,235.76,235.73,2.1192]
[1732146645270,6.63367515,235.75,235.73,2.1192]
[1732146647773,1.2922,235.86,235.7,6.63367515]
[1732146647974,8.75227515,235.8,235.72,6.63367515]
[1732146648169,8.75227515,235.8,235.7,2.1]
[1732146648170,4.6183,235.85,235.76,6.63367515]
[1732146648376,6.63367515,235.81,235.76,2.1189]
[1732146648572,6.63367515,235.79,235.72,6.63367515]
[1732146649069,8.75237515,235.79,235.74,2.119]
[1732146649675,6.63367515,235.79,235.74,2.119]
[1732146650673,6.63367515,235.79,235.75,2.119]
[1732146651069,6.63367515,235.77,235.75,2.119]
[1732146652173,6.63367515,235.77,235.67,8.73367515]
[1732146652375,2.1,235.8,235.67,6.63367515]
[1732146652376,6.63367515,235.74,235.67,6.63367515]
[1732146652774,2.1,235.8,235.67,6.63367515]
[1732146653075,6.63367515,235.75,235.67,6.63367515]
[1732146653382,6.63367515,235.75,235.73,2.1191]
[1732146653576,2.1,235.8,235.69,6.63367515]
[1732146653778,6.63367515,235.77,235.71,6.63367515]
[1732146654775,4.2183,235.84,235.75,6.63367515]
[1732146654976,6.63367515,235.81,235.75,6.63367515]
[1732146655174,2.5183,235.85,235.77,6.63367515]
[1732146655374,6.63367515,235.87,235.79,6.63367515]
[1732146655876,2.1179,235.89,235.83,2.1182]
[1732146656079,2.1,235.91,235.81,6.63367515]
[1732146656274,6.63367515,235.89,235.81,6.63367515]
[1732146656677,2.1,235.91,235.79,10.34803068]
[1732146656875,2.1177,235.9,235.79,10.34803068]
[1732146657580,2.1177,235.9,235.84,2.1181]
[1732146658075,2.1177,235.9,235.79,10.34803068]
[1732146658280,2.1177,235.9,235.85,2.1181]
[1732146659681,2.1177,235.9,235.77,2.1]
[1732146659682,12.69,235.86,235.6,147.45102185]
[1732146659979,10.34803068,235.79,235.65,10.34803068]
[1732146660182,2.1,235.78,235.65,12.44803068]
[1732146660381,10.34803068,235.76,235.65,2.1]
[1732146661277,10.34803068,235.76,235.69,2.1195]
[1732146661488,10.34803068,235.76,235.65,2.1]
[1732146661889,4.7145,235.78,235.65,2.1]
[1732146662492,4.7145,235.78,235.71,2.1193]
[1732146663683,6.8333,235.78,235.71,2.1193]
[1732146664390,2.1189,235.77,235.71,2.1193]
[1732146664887,4.7145,235.78,235.7,2.1195]
[1732146664888,2.1189,235.76,235.7,2.1195]
[1732146665690,2.1189,235.76,235.71,2.1194]
[1732146665991,4.7145,235.78,235.63,10.34803068]
[1732146666187,10.34803068,235.73,235.54,5.87958062]
[1732146666385,12.42803068,235.73,235.57,10.34803068]
[1732146668281,2.1194,235.71,235.64,2.12]
[1732146668992,2.1194,235.71,235.57,10.34803068]
[1732146669186,2.1194,235.71,235.65,2.1199]
[1732146670187,2.1195,235.7,235.65,2.1199]
[1732146670492,10.34803068,235.7,235.59,2.08]
[1732146670792,2.1198,235.67,235.62,2.1201]
[1732146671092,10.34803068,235.7,235.62,2.1201]
[1732146671799,10.34803068,235.7,235.59,2.08]
[1732146671991,2.1197,235.68,235.61,2.1203]
[1732146672197,2.1197,235.68,235.57,10.34803068]
[1732146672498,2.1197,235.68,235.57,12.42803068]
[1732146673292,2.1197,235.68,235.61,2.1202]
[1732146673996,2.1197,235.68,235.57,12.42803068]
[1732146673997,2.1197,235.68,235.62,2.1202]
[1732146676698,10.34803068,235.67,235.54,11.62783068]
[1732146677003,10.34803068,235.67,235.55,2.08]
[1732146678303,2.08,235.68,235.55,2.08]
[1732146678601,4.1997,235.68,235.62,2.1201]
[1732146680902,4.1997,235.68,235.55,2.08]
[1732146681905,4.1997,235.68,235.63,2.1201]
[1732146682203,10.34803068,235.67,235.55,2.08]
[1732146683005,2.1199,235.66,235.55,2.08]
[1732146683702,2.1199,235.66,235.6,2.1203]
[1732146685202,2.1199,235.65,235.6,2.1203]
[1732146687105,2.1199,235.65,235.55,2.08]
[1732146687106,2.1199,235.66,235.58,2.1205]
[1732146687308,10.34803068,235.67,235.55,2.08]
[1732146688206,2.12,235.65,235.6,2.1203]
[1732146688716,6.63665901,235.64,235.6,2.1203]
[1732146690910,2.12,235.65,235.6,2.1203]
[1732146692314,6.63665901,235.66,235.6,2.1203]
[1732146692516,2.12,235.64,235.59,2.1205]
[1732146693412,2.12,235.64,235.45,7.20818062]
[1732146693413,6.63665901,235.6,235.48,2.08]
[1732146693615,1.2668,235.68,235.52,6.63665901]
[1732146693616,6.63665901,235.58,235.52,6.63665901]
[1732146694216,6.63665901,235.58,235.45,1.3286]
[1732146694519,6.63665901,235.58,235.51,6.63665901]
[1732146694716,6.63665901,235.58,235.54,2.1209]
[1732146698921,6.63665901,235.58,235.51,6.63665901]
[1732146699114,8.75725901,235.58,235.53,2.121]
[1732146704733,6.63665901,235.56,235.53,2.121]
[1732146705421,6.63665901,235.56,235.49,6.63665901]
[1732146705627,6.63665901,235.58,235.51,6.63665901]
[1732146706225,2.1207,235.57,235.52,2.1211]
[1732146711226,2.1207,235.57,235.4,5.5064]
[1732146711227,6.63665901,235.54,235.43,1.2727]
[1732146711529,6.63665901,235.54,235.46,6.63665901]
[1732146711729,8.75765901,235.54,235.47,2.1215]
[1732146712426,6.63665901,235.54,235.48,8.75805901]
[1732146713222,2.4967,235.6,235.51,6.63665901]
[1732146713525,6.63665901,235.58,235.53,8.75765901]
[1732146713931,4.5767,235.6,235.53,6.63665901]
[1732146714125,6.63665901,235.59,235.55,2.1208]
[1732146714329,6.63665901,235.59,235.53,6.63665901]
[1732146714530,6.63665901,235.59,235.55,2.1208]
[1732146718237,9.99355901,235.6,235.54,2.1209]
[1732146720528,7.87315901,235.6,235.54,2.1209]
[1732146720731,2.1205,235.59,235.54,2.1209]
[1732146722837,2.1205,235.59,235.53,2.121]
[1732146723136,6.63665901,235.54,235.47,6.63665901]
[1732146723730,8.75755901,235.54,235.48,2.1214]
[1732146723933,6.63665901,235.52,235.46,2.08]
[1732146724335,6.63665901,235.52,235.37,1.2708]
[1732146724531,6.63665901,235.52,235.43,6.63665901]
[1732146725340,2.1214,235.49,235.43,6.63665901]
[1732146725737,6.63665901,235.46,235.37,1.2915]
[1732146725936,6.63665901,235.46,235.4,6.63665901]
[1732146726336,6.63665901,235.46,235.42,2.122]
[1732146727841,8.75815901,235.48,235.42,8.75865901]
[1732146728238,6.63665901,235.5,235.44,6.63665901]
[1732146728438,5.8788,235.51,235.44,6.63665901]
[1732146728643,3.7576,235.51,235.44,6.63665901]
[1732146729539,3.7576,235.51,235.45,2.1217]
[1732146730035,6.63665901,235.5,235.45,2.1217]
[1732146730239,8.75805901,235.5,235.44,8.75845901]
[1732146730638,8.75805901,235.5,235.44,6.63665901]
[1732146731735,3.7576,235.51,235.44,6.63665901]
[1732146732049,6.63665901,235.55,235.48,6.63665901]
[1732146732440,8.75745901,235.55,235.5,2.1212]
[1732146732643,2.1208,235.55,235.5,2.1212]
[1732146732837,6.63665901,235.55,235.48,6.63665901]
[1732146733346,8.75745901,235.55,235.5,2.1213]
[1732146735145,2.08,235.57,235.46,2.1216]
[1732146735146,6.63665901,235.51,235.46,2.1216]
[1732146735441,6.63665901,235.51,235.44,6.63665901]
[1732146736046,6.63665901,235.51,235.47,2.1215]
[1732146737242,6.63665901,235.49,235.44,2.1218]
[1732146737443,6.63665901,235.49,235.42,8.71665901]
[1732146737836,6.63665901,235.51,235.44,6.63665901]
[1732146738246,4.7157,235.52,235.44,6.63665901]
[1732146738441,6.63665901,235.51,235.47,2.1215]
[1732146739245,2.08,235.56,235.48,6.63665901]
[1732146739441,6.63665901,235.55,235.48,6.63665901]
[1732146740152,6.63665901,235.55,235.5,2.1212]
[1732146741042,8.75755901,235.55,235.49,2.1214]
[1732146741542,6.63665901,235.53,235.46,6.63665901]
[1732146741749,6.63665901,235.49,235.42,2.08]
[1732146742644,6.63665901,235.47,235.42,2.08]
[1732146742850,6.63665901,235.47,235.44,2.1217]
[1732146743453,6.63665901,235.49,235.39,2.08]
[1732146743646,6.63665901,235.49,235.43,6.63665901]
[1732146743952,6.63665901,235.49,235.43,2.1219]
[1732146744249,6.63665901,235.49,235.41,6.63665901]
[1732146744550,6.63665901,235.49,235.44,2.1217]
[1732146744848,6.63665901,235.49,235.41,6.63665901]
[1732146745747,6.63665901,235.49,235.43,6.63665901]
[1732146746246,6.63665901,235.49,235.42,6.63665901]
[1732146746546,6.63665901,235.43,235.31,23.51832249]
[1732146746758,2.08,235.48,235.37,2.1224]
[1732146746946,6.63665901,235.42,235.37,2.1224]
[1732146747854,6.63665901,235.43,235.38,2.1223]
[1732146748257,8.75855901,235.43,235.36,6.63665901]
[1732146749347,8.75855901,235.43,235.37,2.1224]
[1732146749653,2.1219,235.43,235.38,6.63665901]
[1732146750348,2.1219,235.43,235.38,8.75905901]
[1732146750952,6.63665901,235.45,235.38,8.75905901]
[1732146751157,2.1218,235.44,235.38,6.63665901]
[1732146751456,2.1218,235.44,235.39,2.1223]
[1732146751653,2.1218,235.44,235.38,6.63665901]
[1732146751854,2.1213,235.51,235.42,6.63665901]
[1732146752157,6.63665901,235.49,235.42,6.63665901]
[1732146752356,6.63665901,235.49,235.45,2.1217]
[1732146752553,6.63665901,235.49,235.42,6.63665901]
[1732146752750,2.5402,235.52,235.44,6.63665901]
[1732146752950,0.86523,235.54,235.51,2.1212]
[1732146753349,0.86523,235.54,235.48,6.63665901]
[1732146754058,6.63665901,235.51,235.44,8.71665901]
[1732146754756,0.86523,235.54,235.44,2.08]
[1732146755160,3.32713,235.54,235.44,2.08]
[1732146755359,3.32713,235.54,235.46,2.1216]
[1732146755360,2.1211,235.52,235.46,2.1216]
[1732146756453,2.1214,235.5,235.43,2.1218]
[1732146756657,2.1214,235.5,235.41,2.08]
[1732146757354,2.1214,235.49,235.44,2.1218]
[1732146758250,10.38130748,235.52,235.44,2.1218]
[1732146758450,2.1213,235.5,235.44,2.1218]
[1732146758659,10.38130748,235.52,235.44,2.1218]
[1732146759156,2.1214,235.49,235.44,2.1218]
[1732146759359,10.38130748,235.52,235.44,2.1218]
[1732146759562,10.38130748,235.52,235.41,2.08]
[1732146759760,2.1215,235.48,235.42,2.122]
[1732146759962,2.1215,235.48,235.41,2.08]
[1732146761455,2.1216,235.47,235.41,2.08]
[1732146762357,2.1216,235.47,235.35,10.38130748]
[1732146762358,2.1216,235.47,235.42,2.122]
[1732146762657,2.1217,235.46,235.33,12.46130748]
[1732146762859,2.1217,235.46,235.4,2.1222]
[1732146764156,2.1217,235.46,235.33,12.46130748]
[1732146764157,2.1219,235.44,235.33,12.46130748]
[1732146764367,12.46130748,235.49,235.33,12.46130748]
[1732146764865,10.38130748,235.46,235.33,12.46130748]
[1732146765063,2.5481,235.45,235.33,12.46130748]
[1732146765265,10.38130748,235.43,235.27,1.266]
[1732146765464,10.38130748,235.43,235.23,11.39488062]
[1732146765667,10.38130748,235.43,235.27,10.38130748]
[1732146765960,2.1224,235.39,235.33,2.1227]
[1732146766565,2.1224,235.39,235.27,10.38130748]
[1732146766865,2.1224,235.39,235.34,2.1227]
[1732146767261,2.1224,235.38,235.32,2.1229]